[Event "*** SCC Grand Prix: Titled Tuesday Blitz"]
[Site "Chess.com"]
[Date "2020.10.13"]
[Round "3"]
[White "OlympusMons95"]
[Black "Artem_Sadovsky"]
[Result "1-0"]
[WhiteElo "2721"]
[BlackElo "2506"]
[TimeControl "180+1"]
[EndTime "10:28:47 PDT"]
[Termination "OlympusMons95 won by resignation"]

1. d4 {[%clk 0:03:00.9]} 1... g6 {[%clk 0:02:59.6]} 2. e4 {[%clk 0:02:59.6]}
2... Bg7 {[%clk 0:02:58.5]} 3. c4 {[%clk 0:02:59.5]} 3... d6 {[%clk 0:02:58.5]}
4. Nc3 {[%clk 0:02:59.2]} 4... e5 {[%clk 0:02:58.8]} 5. dxe5 {[%clk 0:02:56.1]}
5... dxe5 {[%clk 0:02:56.7]} 6. Qxd8+ {[%clk 0:02:57]} 6... Kxd8 {[%clk
0:02:57.6]} 7. f4 {[%clk 0:02:57.4]} 7... Nc6 {[%clk 0:02:50.2]} 8. Nf3 {[%clk
0:02:57.2]} 8... Nd4 {[%clk 0:02:49.2]} 9. Kf2 {[%clk 0:02:53.6]} 9... Nxf3
{[%clk 0:02:46.3]} 10. gxf3 {[%clk 0:02:53.3]} 10... Be6 {[%clk 0:02:41.9]} 11.
h4 {[%clk 0:02:48.9]} 11... c6 {[%clk 0:02:37.8]} 12. h5 {[%clk 0:02:47.6]}
12... Kc7 {[%clk 0:02:12.7]} 13. Be3 {[%clk 0:02:36.4]} 13... Rd8 {[%clk
0:02:05]} 14. Be2 {[%clk 0:02:18.7]} 14... Ne7 {[%clk 0:01:39.3]} 15. Rac1
{[%clk 0:02:10.4]} 15... Kb8 {[%clk 0:01:35.5]} 16. h6 {[%clk 0:01:43.4]} 16...
Bf6 {[%clk 0:01:31.3]} 17. fxe5 {[%clk 0:01:42.7]} 17... Bxe5 {[%clk 0:01:30.8]}
18. f4 {[%clk 0:01:43.1]} 18... Bd4 {[%clk 0:01:26.1]} 19. Rcd1 {[%clk
0:01:39.6]} 19... Bxe3+ {[%clk 0:01:07.2]} 20. Kxe3 {[%clk 0:01:40.5]} 20... Kc7
{[%clk 0:00:56.6]} 21. b3 {[%clk 0:01:31]} 21... Rxd1 {[%clk 0:00:43]} 22. Nxd1
{[%clk 0:01:29.3]} 22... Rd8 {[%clk 0:00:35.1]} 23. Nf2 {[%clk 0:01:29]} 23...
c5 {[%clk 0:00:26.6]} 24. Nd3 {[%clk 0:01:16.6]} 24... b6 {[%clk 0:00:24.1]} 25.
Ne5 {[%clk 0:01:10.8]} 25... f6 {[%clk 0:00:21.9]} 26. Nf3 {[%clk 0:00:56]}
26... Nc6 {[%clk 0:00:21.2]} 27. Rg1 {[%clk 0:00:55.6]} 27... Nd4 {[%clk
0:00:20.2]} 28. Nxd4 {[%clk 0:00:55.8]} 28... Rxd4 {[%clk 0:00:19.7]} 29. Bd3
{[%clk 0:00:44.1]} 29... Bf7 {[%clk 0:00:18.7]} 30. f5 {[%clk 0:00:41.6]} 30...
g5 {[%clk 0:00:18.7]} 31. e5 {[%clk 0:00:39.3]} 31... Rh4 {[%clk 0:00:13.1]} 32.
exf6 {[%clk 0:00:33]} 32... Rxh6 {[%clk 0:00:12.6]} 33. Rxg5 {[%clk 0:00:33.4]}
33... Rxf6 {[%clk 0:00:13.3]} 34. Kf4 {[%clk 0:00:33.6]} 34... Kd6 {[%clk
0:00:13.4]} 35. Be4 {[%clk 0:00:32.8]} 35... h6 {[%clk 0:00:12.3]} 36. Rg1
{[%clk 0:00:31.9]} 36... Ke7 {[%clk 0:00:06.3]} 37. Ke5 {[%clk 0:00:31.7]} 37...
Rd6 {[%clk 0:00:03]} 38. Rg7 {[%clk 0:00:31.1]} 1-0

[Event "*** SCC Grand Prix: Titled Tuesday Blitz"]
[Site "Chess.com"]
[Date "2020.10.13"]
[Round "3"]
[White "MathiasWomacka"]
[Black "ajedrezhoy"]
[Result "0-1"]
[WhiteElo "2493"]
[BlackElo "2252"]
[TimeControl "180+1"]
[EndTime "10:28:47 PDT"]
[Termination "ajedrezhoy won on time"]

1. e4 {[%clk 0:03:00.9]} 1... Nf6 {[%clk 0:02:53]} 2. e5 {[%clk 0:02:59.6]} 2...
Nd5 {[%clk 0:02:52]} 3. d4 {[%clk 0:02:59.5]} 3... d6 {[%clk 0:02:52]} 4. c4
{[%clk 0:02:56.3]} 4... Nb6 {[%clk 0:02:51.2]} 5. exd6 {[%clk 0:02:56.7]} 5...
cxd6 {[%clk 0:02:51.3]} 6. Nc3 {[%clk 0:02:55.3]} 6... g6 {[%clk 0:02:51.7]} 7.
Be3 {[%clk 0:02:55]} 7... Bg7 {[%clk 0:02:52]} 8. Rc1 {[%clk 0:02:55]} 8... O-O
{[%clk 0:02:52.1]} 9. b3 {[%clk 0:02:55.3]} 9... Bf5 {[%clk 0:02:52.4]} 10. Nf3
{[%clk 0:02:47.9]} 10... d5 {[%clk 0:02:50.1]} 11. c5 {[%clk 0:02:47]} 11... Nc8
{[%clk 0:02:50]} 12. h3 {[%clk 0:02:34.2]} 12... Nc6 {[%clk 0:02:47.8]} 13. Be2
{[%clk 0:02:27.5]} 13... Be4 {[%clk 0:02:42.7]} 14. Ng5 {[%clk 0:01:56.8]} 14...
Bxg2 {[%clk 0:02:35.7]} 15. Rg1 {[%clk 0:01:56.7]} 15... Be4 {[%clk 0:02:26.8]}
16. Ngxe4 {[%clk 0:01:45]} 16... dxe4 {[%clk 0:02:15.2]} 17. d5 {[%clk
0:01:44.9]} 17... Bxc3+ {[%clk 0:01:50.8]} 18. Rxc3 {[%clk 0:01:45.8]} 18... Nb4
{[%clk 0:01:50.5]} 19. Bc4 {[%clk 0:01:38.3]} 19... b5 {[%clk 0:01:46.4]} 20.
cxb6 {[%clk 0:01:07]} 20... Nxb6 {[%clk 0:01:20.8]} 21. Rg5 {[%clk 0:00:46.6]}
21... f6 {[%clk 0:01:07.6]} 22. Rg3 {[%clk 0:00:32.9]} 22... f5 {[%clk
0:00:40.5]} 23. a3 {[%clk 0:00:14.7]} 23... Nxc4 {[%clk 0:00:35.9]} 24. bxc4
{[%clk 0:00:13.1]} 24... Nd3+ {[%clk 0:00:35.6]} 25. Rxd3 {[%clk 0:00:11.4]}
25... exd3 {[%clk 0:00:34.8]} 26. Bh6 {[%clk 0:00:10.2]} 26... Rf6 {[%clk
0:00:33.3]} 27. Qxd3 {[%clk 0:00:08.4]} 27... Qd6 {[%clk 0:00:31.2]} 28. Kf1
{[%clk 0:00:07.1]} 28... f4 {[%clk 0:00:23.8]} 29. Rg5 {[%clk 0:00:03.9]} 29...
e5 {[%clk 0:00:20.7]} 30. Qe4 {[%clk 0:00:02.3]} 30... Re8 {[%clk 0:00:20.2]}
31. h4 {[%clk 0:00:02.1]} 31... Qxa3 {[%clk 0:00:19.6]} 0-1

[Event "*** SCC Grand Prix: Titled Tuesday Blitz"]
[Site "Chess.com"]
[Date "2020.10.13"]
[Round "3"]
[White "vlad_Sid"]
[Black "GM_Huschenbeth"]
[Result "1-0"]
[WhiteElo "2584"]
[BlackElo "2359"]
[TimeControl "180+1"]
[EndTime "10:28:49 PDT"]
[Termination "vlad_Sid won by checkmate"]

1. c4 {[%clk 0:03:00.9]} 1... Nf6 {[%clk 0:02:59.2]} 2. g3 {[%clk 0:03:01.3]}
2... e5 {[%clk 0:02:58.4]} 3. Bg2 {[%clk 0:03:01.5]} 3... h5 {[%clk 0:02:56.6]}
4. h4 {[%clk 0:03:00.9]} 4... d5 {[%clk 0:02:55]} 5. cxd5 {[%clk 0:03:01.8]}
5... Nxd5 {[%clk 0:02:55.6]} 6. Nc3 {[%clk 0:03:02.2]} 6... Nb6 {[%clk
0:02:54.3]} 7. Nf3 {[%clk 0:03:01.9]} 7... Nc6 {[%clk 0:02:54]} 8. O-O {[%clk
0:03:00.9]} 8... Be7 {[%clk 0:02:49.3]} 9. d3 {[%clk 0:03:00]} 9... O-O {[%clk
0:02:49]} 10. Be3 {[%clk 0:02:56.7]} 10... Bg4 {[%clk 0:02:47.7]} 11. Rc1 {[%clk
0:02:54.9]} 11... Re8 {[%clk 0:02:42]} 12. Ne4 {[%clk 0:02:52.1]} 12... Nd4
{[%clk 0:02:33.3]} 13. Bxd4 {[%clk 0:02:24.6]} 13... exd4 {[%clk 0:02:34.2]} 14.
Nc5 {[%clk 0:02:22.6]} 14... Bxc5 {[%clk 0:02:25.2]} 15. Rxc5 {[%clk 0:02:23.5]}
15... Qd6 {[%clk 0:02:24.3]} 16. Rc2 {[%clk 0:02:09.4]} 16... Re7 {[%clk
0:02:06.3]} 17. Ng5 {[%clk 0:01:54.9]} 17... Rae8 {[%clk 0:01:35.6]} 18. Bf3
{[%clk 0:01:43.8]} 18... Bxf3 {[%clk 0:01:27.5]} 19. exf3 {[%clk 0:01:44.7]}
19... Qb4 {[%clk 0:01:03.4]} 20. f4 {[%clk 0:01:39.5]} 20... g6 {[%clk
0:01:00.6]} 21. Qf3 {[%clk 0:01:30.8]} 21... c6 {[%clk 0:00:59.3]} 22. f5 {[%clk
0:01:27.2]} 22... Nd5 {[%clk 0:00:38.8]} 23. Ne4 {[%clk 0:01:13.7]} 23... Qa5
{[%clk 0:00:28.8]} 24. Rc5 {[%clk 0:01:06.8]} 24... Qxa2 {[%clk 0:00:26.4]} 25.
Rxd5 {[%clk 0:01:05.6]} 25... cxd5 {[%clk 0:00:27.3]} 26. Nf6+ {[%clk
0:00:59.8]} 26... Kg7 {[%clk 0:00:26.6]} 27. Nxe8+ {[%clk 0:00:41.4]} 27... Rxe8
{[%clk 0:00:27.5]} 28. fxg6 {[%clk 0:00:42]} 28... fxg6 {[%clk 0:00:27.3]} 29.
Rc1 {[%clk 0:00:39.5]} 29... Re7 {[%clk 0:00:23.9]} 30. Rc8 {[%clk 0:00:38.9]}
30... Rf7 {[%clk 0:00:22.4]} 31. Qe2 {[%clk 0:00:35.1]} 31... Qa6 {[%clk
0:00:20.4]} 32. Qe8 {[%clk 0:00:31.5]} 32... Kf6 {[%clk 0:00:07.8]} 33. Qh8+
{[%clk 0:00:25.9]} 33... Kf5 {[%clk 0:00:06.9]} 34. Qxd4 {[%clk 0:00:19.7]}
34... Qe6 {[%clk 0:00:04.8]} 35. Qf4# {[%clk 0:00:17.1]} 1-0

[Event "*** SCC Grand Prix: Titled Tuesday Blitz"]
[Site "Chess.com"]
[Date "2020.10.13"]
[Round "3"]
[White "FMalexhdez"]
[Black "akanga001"]
[Result "1-0"]
[WhiteElo "2257"]
[BlackElo "1839"]
[TimeControl "180+1"]
[EndTime "10:28:49 PDT"]
[Termination "FMalexhdez won on time"]

1. e4 {[%clk 0:03:00.9]} 1... c6 {[%clk 0:02:59.6]} 2. d4 {[%clk 0:03:00.3]}
2... d5 {[%clk 0:03:00.5]} 3. exd5 {[%clk 0:02:59.8]} 3... cxd5 {[%clk
0:02:59.9]} 4. Bd3 {[%clk 0:03:00.6]} 4... Nc6 {[%clk 0:02:58.3]} 5. c3 {[%clk
0:03:01.1]} 5... Nf6 {[%clk 0:02:58.1]} 6. Bg5 {[%clk 0:03:01.7]} 6... e6 {[%clk
0:02:55.8]} 7. Nd2 {[%clk 0:03:01.3]} 7... Be7 {[%clk 0:02:55.2]} 8. Ngf3 {[%clk
0:03:01.5]} 8... O-O {[%clk 0:02:53.9]} 9. O-O {[%clk 0:03:02]} 9... Qc7 {[%clk
0:02:52.9]} 10. Re1 {[%clk 0:03:01.8]} 10... Nh5 {[%clk 0:02:50.8]} 11. Bxe7
{[%clk 0:02:56]} 11... Nxe7 {[%clk 0:02:49.7]} 12. Ne5 {[%clk 0:02:54.6]} 12...
Nf4 {[%clk 0:02:48.7]} 13. Bf1 {[%clk 0:02:54.1]} 13... Nfg6 {[%clk 0:02:45.9]}
14. Ndf3 {[%clk 0:02:51.6]} 14... Nxe5 {[%clk 0:02:44.8]} 15. Nxe5 {[%clk
0:02:50.7]} 15... Ng6 {[%clk 0:02:45.7]} 16. Qh5 {[%clk 0:02:38.2]} 16... Nxe5
{[%clk 0:02:45]} 17. Rxe5 {[%clk 0:02:35.7]} 17... f6 {[%clk 0:02:39]} 18. Re3
{[%clk 0:02:34.5]} 18... g6 {[%clk 0:02:34.1]} 19. Qh4 {[%clk 0:02:31.1]} 19...
e5 {[%clk 0:02:26.8]} 20. dxe5 {[%clk 0:02:24.7]} 20... fxe5 {[%clk 0:02:26.2]}
21. Rae1 {[%clk 0:02:09.7]} 21... e4 {[%clk 0:01:31]} 22. c4 {[%clk 0:02:06.5]}
22... Be6 {[%clk 0:01:23.6]} 23. g3 {[%clk 0:01:43.5]} 23... Rae8 {[%clk
0:01:18.5]} 24. Bg2 {[%clk 0:01:40.3]} 24... Qxc4 {[%clk 0:01:12]} 25. Rc3
{[%clk 0:01:27.7]} 25... Qxa2 {[%clk 0:01:09]} 26. Rc7 {[%clk 0:01:24.2]} 26...
Rf7 {[%clk 0:01:07.9]} 27. Rec1 {[%clk 0:01:20.6]} 27... Ref8 {[%clk 0:01:06.8]}
28. R7c2 {[%clk 0:00:42.3]} 28... b5 {[%clk 0:00:58.1]} 29. Qg5 {[%clk
0:00:39.4]} 29... Qa6 {[%clk 0:00:45.7]} 30. Rc6 {[%clk 0:00:33.4]} 30... Qa4
{[%clk 0:00:12.8]} 31. Rxe6 {[%clk 0:00:32.7]} 31... Rxf2 {[%clk 0:00:12.3]} 32.
Qxd5 {[%clk 0:00:28.8]} 32... Kh8 {[%clk 0:00:08.3]} 33. Rxe4 {[%clk 0:00:25.2]}
33... Qa5 {[%clk 0:00:02.3]} 34. Qd4+ {[%clk 0:00:22.2]} 34... Kg8 {[%clk
0:00:01.7]} 35. Re7 {[%clk 0:00:20.5]} 1-0

[Event "*** SCC Grand Prix: Titled Tuesday Blitz"]
[Site "Chess.com"]
[Date "2020.10.13"]
[Round "3"]
[White "PhileKhoob"]
[Black "Fischerev7"]
[Result "1-0"]
[WhiteElo "2496"]
[BlackElo "2242"]
[TimeControl "180+1"]
[EndTime "10:28:50 PDT"]
[Termination "PhileKhoob won on time"]

1. Nf3 {[%clk 0:03:00.9]} 1... Nf6 {[%clk 0:02:59.4]} 2. g3 {[%clk 0:03:01]}
2... e6 {[%clk 0:02:58.5]} 3. Bg2 {[%clk 0:03:01.9]} 3... d5 {[%clk 0:02:58.7]}
4. O-O {[%clk 0:03:02.8]} 4... Be7 {[%clk 0:02:58.8]} 5. c4 {[%clk 0:03:03.7]}
5... O-O {[%clk 0:02:58.2]} 6. b3 {[%clk 0:03:04]} 6... b6 {[%clk 0:02:57.6]} 7.
Bb2 {[%clk 0:03:04.4]} 7... c5 {[%clk 0:02:57.6]} 8. e3 {[%clk 0:03:05]} 8...
Bb7 {[%clk 0:02:57.6]} 9. Nc3 {[%clk 0:03:05.3]} 9... Nc6 {[%clk 0:02:26.2]} 10.
cxd5 {[%clk 0:03:05.2]} 10... exd5 {[%clk 0:02:20.7]} 11. d4 {[%clk 0:03:05.6]}
11... Rc8 {[%clk 0:02:16.8]} 12. Rc1 {[%clk 0:03:05.5]} 12... Ba6 {[%clk
0:02:15]} 13. Re1 {[%clk 0:03:04]} 13... Nb4 {[%clk 0:02:14.8]} 14. Ne5 {[%clk
0:02:56.8]} 14... cxd4 {[%clk 0:01:39]} 15. exd4 {[%clk 0:02:24.2]} 15... Bb7
{[%clk 0:01:14.9]} 16. a3 {[%clk 0:01:43.2]} 16... Nc6 {[%clk 0:01:14.2]} 17.
Qd2 {[%clk 0:01:31.5]} 17... h6 {[%clk 0:01:04.4]} 18. b4 {[%clk 0:01:26.1]}
18... a6 {[%clk 0:00:59.2]} 19. Re2 {[%clk 0:01:23.1]} 19... Re8 {[%clk
0:00:55.5]} 20. Rce1 {[%clk 0:01:23.4]} 20... Bf8 {[%clk 0:00:53.2]} 21. Bh3
{[%clk 0:01:22.6]} 21... Rc7 {[%clk 0:00:37.1]} 22. b5 {[%clk 0:01:15.2]} 22...
axb5 {[%clk 0:00:31.7]} 23. Nxb5 {[%clk 0:01:16.1]} 23... Rce7 {[%clk 0:00:29]}
24. f4 {[%clk 0:01:02.2]} 24... Ne4 {[%clk 0:00:21.9]} 25. Qc2 {[%clk
0:00:57.8]} 25... Na5 {[%clk 0:00:19.2]} 26. Qa4 {[%clk 0:00:44.5]} 26... Qa8
{[%clk 0:00:08.8]} 27. Nd7 {[%clk 0:00:40]} 27... Qa6 {[%clk 0:00:06.2]} 28. Nc7
{[%clk 0:00:35.3]} 28... Bc6 {[%clk 0:00:05.6]} 29. Qd1 {[%clk 0:00:25.1]} 29...
Qb7 {[%clk 0:00:05.9]} 30. Nxe8 {[%clk 0:00:24.4]} 30... Bxd7 {[%clk 0:00:05.2]}
31. Nd6 {[%clk 0:00:20.2]} 31... Nxd6 {[%clk 0:00:03.2]} 32. Rxe7 {[%clk
0:00:21.1]} 32... Bxh3 {[%clk 0:00:02.5]} 33. Rxb7 {[%clk 0:00:20.7]} 1-0

[Event "*** SCC Grand Prix: Titled Tuesday Blitz"]
[Site "Chess.com"]
[Date "2020.10.13"]
[Round "3"]
[White "pirulillo"]
[Black "shriyanasmallya"]
[Result "1/2-1/2"]
[WhiteElo "2246"]
[BlackElo "1612"]
[TimeControl "180+1"]
[EndTime "10:28:53 PDT"]
[Termination "Game drawn by repetition"]

1. e4 {[%clk 0:03:00.2]} 1... e5 {[%clk 0:02:59.2]} 2. Bc4 {[%clk 0:02:59.6]}
2... Nc6 {[%clk 0:02:58.6]} 3. d3 {[%clk 0:02:58.6]} 3... Nf6 {[%clk 0:02:57.9]}
4. Nc3 {[%clk 0:02:57.5]} 4... Bb4 {[%clk 0:02:57.4]} 5. Ne2 {[%clk 0:02:56.9]}
5... d6 {[%clk 0:02:55.2]} 6. O-O {[%clk 0:02:54.9]} 6... O-O {[%clk 0:02:52.2]}
7. f4 {[%clk 0:02:53.9]} 7... Bc5+ {[%clk 0:02:49.4]} 8. Kh1 {[%clk 0:02:53.6]}
8... exf4 {[%clk 0:02:46.6]} 9. Bxf4 {[%clk 0:02:51.4]} 9... Nd4 {[%clk
0:02:27.6]} 10. Nxd4 {[%clk 0:02:49.8]} 10... Bxd4 {[%clk 0:02:26.8]} 11. Bg5
{[%clk 0:02:47.3]} 11... h6 {[%clk 0:02:21.7]} 12. Bh4 {[%clk 0:02:46.4]} 12...
g5 {[%clk 0:02:17.4]} 13. Bg3 {[%clk 0:02:41.3]} 13... Bg4 {[%clk 0:02:17.1]}
14. Qd2 {[%clk 0:02:38.2]} 14... Nh5 {[%clk 0:02:15.7]} 15. Bf2 {[%clk
0:02:36.1]} 15... Bxf2 {[%clk 0:02:12.8]} 16. Rxf2 {[%clk 0:02:37]} 16... Nf4
{[%clk 0:02:10.3]} 17. Raf1 {[%clk 0:02:34.1]} 17... c6 {[%clk 0:02:02.4]} 18.
g3 {[%clk 0:02:29.8]} 18... Ne6 {[%clk 0:02:00.8]} 19. Rf6 {[%clk 0:02:26.1]}
19... Kg7 {[%clk 0:01:56.2]} 20. Ne2 {[%clk 0:02:17.7]} 20... Bxe2 {[%clk
0:01:49.1]} 21. Qxe2 {[%clk 0:02:16.8]} 21... Qxf6 {[%clk 0:01:47]} 22. Rxf6
{[%clk 0:02:15.5]} 22... Kxf6 {[%clk 0:01:47.7]} 23. c3 {[%clk 0:02:14.2]} 23...
Kg6 {[%clk 0:01:43.4]} 24. Bb3 {[%clk 0:02:11.6]} 24... Nc5 {[%clk 0:01:36.2]}
25. Bc2 {[%clk 0:02:10.9]} 25... Kg7 {[%clk 0:01:30]} 26. d4 {[%clk 0:02:10.6]}
26... Nd7 {[%clk 0:01:25.6]} 27. Qf3 {[%clk 0:02:09.4]} 27... f6 {[%clk
0:01:11.4]} 28. Qf5 {[%clk 0:02:08.2]} 28... Rf7 {[%clk 0:00:55.5]} 29. Qe6
{[%clk 0:02:02.8]} 29... Nf8 {[%clk 0:00:29.8]} 30. Qxd6 {[%clk 0:01:58.6]}
30... Rd7 {[%clk 0:00:29.1]} 31. Qc5 {[%clk 0:01:57.2]} 31... Ne6 {[%clk
0:00:22.3]} 32. Qf5 {[%clk 0:01:54.7]} 32... Re8 {[%clk 0:00:19.2]} 33. e5
{[%clk 0:01:39]} 33... fxe5 {[%clk 0:00:19.1]} 34. Qh7+ {[%clk 0:01:38.1]} 34...
Kf8 {[%clk 0:00:19.3]} 35. Qxd7 {[%clk 0:01:38.6]} 35... exd4 {[%clk 0:00:18.3]}
36. cxd4 {[%clk 0:01:34.4]} 36... Re7 {[%clk 0:00:19.2]} 37. Qd6 {[%clk
0:01:33]} 37... Kf7 {[%clk 0:00:19.2]} 38. Bb3 {[%clk 0:01:32.6]} 38... Kf6
{[%clk 0:00:16.9]} 39. d5 {[%clk 0:01:31.7]} 39... cxd5 {[%clk 0:00:16.7]} 40.
Bxd5 {[%clk 0:01:32.6]} 40... b6 {[%clk 0:00:16.6]} 41. Kg2 {[%clk 0:01:27.4]}
41... Kf7 {[%clk 0:00:13.9]} 42. h4 {[%clk 0:01:22.9]} 42... gxh4 {[%clk
0:00:13.7]} 43. gxh4 {[%clk 0:01:23.8]} 43... Kf6 {[%clk 0:00:14.1]} 44. Kg3
{[%clk 0:01:23]} 44... Rg7+ {[%clk 0:00:13.7]} 45. Kh2 {[%clk 0:01:21.8]} 45...
Re7 {[%clk 0:00:13.6]} 46. Kg3 {[%clk 0:01:06.7]} 46... Kf7 {[%clk 0:00:12.5]}
47. Kf3 {[%clk 0:01:03.1]} 47... Kf6 {[%clk 0:00:12.8]} 48. Kg3 {[%clk
0:01:01.4]} 1/2-1/2

[Event "*** SCC Grand Prix: Titled Tuesday Blitz"]
[Site "Chess.com"]
[Date "2020.10.13"]
[Round "3"]
[White "iwanyu"]
[Black "sjam6687"]
[Result "1-0"]
[WhiteElo "2802"]
[BlackElo "2549"]
[TimeControl "180+1"]
[EndTime "10:28:54 PDT"]
[Termination "iwanyu won by resignation"]

1. e4 {[%clk 0:03:00.9]} 1... e5 {[%clk 0:02:58]} 2. Nf3 {[%clk 0:03:00.9]} 2...
Nc6 {[%clk 0:02:57.4]} 3. d4 {[%clk 0:03:01.6]} 3... exd4 {[%clk 0:02:56.7]} 4.
Nxd4 {[%clk 0:03:02.5]} 4... Bc5 {[%clk 0:02:53.6]} 5. Nf3 {[%clk 0:03:02.5]}
5... Nf6 {[%clk 0:02:51.7]} 6. Nc3 {[%clk 0:03:01.3]} 6... O-O {[%clk
0:02:50.6]} 7. Be2 {[%clk 0:03:01]} 7... d6 {[%clk 0:02:50.3]} 8. O-O {[%clk
0:03:00.7]} 8... Bg4 {[%clk 0:02:50.2]} 9. h3 {[%clk 0:02:59.7]} 9... Bh5 {[%clk
0:02:49.6]} 10. Bg5 {[%clk 0:02:55.7]} 10... h6 {[%clk 0:02:49.5]} 11. Bh4
{[%clk 0:02:54.6]} 11... Re8 {[%clk 0:02:45.9]} 12. Nd2 {[%clk 0:02:32.8]} 12...
Bxe2 {[%clk 0:02:43.6]} 13. Qxe2 {[%clk 0:02:33.7]} 13... Nd4 {[%clk 0:02:41.1]}
14. Qd3 {[%clk 0:02:33.4]} 14... g5 {[%clk 0:02:37.6]} 15. Bg3 {[%clk
0:02:32.9]} 15... Nd7 {[%clk 0:02:34.8]} 16. Nb3 {[%clk 0:02:25.5]} 16... Nxb3
{[%clk 0:02:32.8]} 17. axb3 {[%clk 0:02:24.3]} 17... Ne5 {[%clk 0:02:27.2]} 18.
Qd1 {[%clk 0:02:24.2]} 18... Re6 {[%clk 0:02:24.5]} 19. Kh2 {[%clk 0:02:00]}
19... Ng6 {[%clk 0:02:17.6]} 20. Qd5 {[%clk 0:01:49.5]} 20... c6 {[%clk
0:02:12]} 21. Qd3 {[%clk 0:01:48.5]} 21... Qe7 {[%clk 0:02:09.4]} 22. f3 {[%clk
0:01:07.9]} 22... Ne5 {[%clk 0:02:05.7]} 23. Qd2 {[%clk 0:01:07.3]} 23... Kg7
{[%clk 0:02:01.5]} 24. Na4 {[%clk 0:01:07.5]} 24... Rd8 {[%clk 0:01:57.5]} 25.
Nxc5 {[%clk 0:01:04.6]} 25... dxc5 {[%clk 0:01:58.4]} 26. Qc3 {[%clk 0:01:05.2]}
26... b6 {[%clk 0:01:55.9]} 27. f4 {[%clk 0:01:01.6]} 27... gxf4 {[%clk
0:01:53.8]} 28. Rxf4 {[%clk 0:01:02.5]} 28... Rd4 {[%clk 0:01:50]} 29. Raf1
{[%clk 0:01:02.6]} 29... f6 {[%clk 0:01:48]} 30. Bh4 {[%clk 0:00:57.9]} 30...
Nd7 {[%clk 0:01:45]} 31. Qg3+ {[%clk 0:00:57.1]} 31... Kh7 {[%clk 0:01:42.9]}
32. c3 {[%clk 0:00:36.3]} 32... Rdd6 {[%clk 0:01:39.6]} 33. Rg4 {[%clk
0:00:32.4]} 33... Ne5 {[%clk 0:01:36.3]} 34. Rg8 {[%clk 0:00:32.3]} 34... Qf7
{[%clk 0:01:30.3]} 35. Ra8 {[%clk 0:00:28.2]} 35... Ng6 {[%clk 0:01:24.9]} 36.
e5 {[%clk 0:00:23]} 36... Rxe5 {[%clk 0:01:20.1]} 37. Qg4 {[%clk 0:00:14]} 37...
f5 {[%clk 0:01:08.1]} 38. Bg3 {[%clk 0:00:13.5]} 38... Re4 {[%clk 0:01:05.7]}
39. Qxe4 {[%clk 0:00:13]} 39... Rf6 {[%clk 0:01:02.5]} 40. Qe8 {[%clk
0:00:12.5]} 40... f4 {[%clk 0:01:00.3]} 41. Qxf7+ {[%clk 0:00:12.5]} 41... Rxf7
{[%clk 0:00:59.9]} 42. Bf2 {[%clk 0:00:13.4]} 42... Ne5 {[%clk 0:00:56.5]} 43.
Rd1 {[%clk 0:00:12.7]} 43... f3 {[%clk 0:00:54.8]} 44. g4 {[%clk 0:00:12.6]}
44... Re7 {[%clk 0:00:51.3]} 45. Kg3 {[%clk 0:00:13.1]} 45... Kg6 {[%clk
0:00:49.9]} 46. Re1 {[%clk 0:00:13.5]} 46... Kf6 {[%clk 0:00:47.7]} 47. b4
{[%clk 0:00:13.9]} 1-0

[Event "*** SCC Grand Prix: Titled Tuesday Blitz"]
[Site "Chess.com"]
[Date "2020.10.13"]
[Round "3"]
[White "FairChess_on_YouTube"]
[Black "Lagmantr"]
[Result "1-0"]
[WhiteElo "3001"]
[BlackElo "2720"]
[TimeControl "180+1"]
[EndTime "10:28:55 PDT"]
[Termination "FairChess_on_YouTube won by resignation"]

1. e4 {[%clk 0:02:59]} 1... c6 {[%clk 0:02:59.3]} 2. Nf3 {[%clk 0:02:55.5]} 2...
d5 {[%clk 0:02:58.9]} 3. exd5 {[%clk 0:02:56.4]} 3... cxd5 {[%clk 0:02:57.3]} 4.
Ne5 {[%clk 0:02:56.3]} 4... Nc6 {[%clk 0:02:57.6]} 5. d4 {[%clk 0:02:50]} 5...
Qb6 {[%clk 0:02:54.8]} 6. c3 {[%clk 0:02:28.8]} 6... Nf6 {[%clk 0:02:42]} 7. Bd3
{[%clk 0:02:26]} 7... Nxe5 {[%clk 0:02:31.5]} 8. dxe5 {[%clk 0:02:25.6]} 8...
Nd7 {[%clk 0:02:32]} 9. Qe2 {[%clk 0:02:17.8]} 9... Nc5 {[%clk 0:02:26.3]} 10.
O-O {[%clk 0:01:53.8]} 10... Nxd3 {[%clk 0:02:23.4]} 11. Qxd3 {[%clk 0:01:54.7]}
11... e6 {[%clk 0:02:21]} 12. Be3 {[%clk 0:01:48.3]} 12... Bc5 {[%clk
0:02:20.3]} 13. Bxc5 {[%clk 0:01:46.5]} 13... Qxc5 {[%clk 0:02:21.2]} 14. Nd2
{[%clk 0:01:46.2]} 14... Bd7 {[%clk 0:02:18.8]} 15. Nb3 {[%clk 0:01:43.3]} 15...
Qc4 {[%clk 0:02:12.6]} 16. Qg3 {[%clk 0:01:42.9]} 16... O-O-O {[%clk 0:01:53.8]}
17. Rfd1 {[%clk 0:01:30.5]} 17... h5 {[%clk 0:01:53.3]} 18. Rd4 {[%clk
0:01:29.3]} 18... Qc7 {[%clk 0:01:53.2]} 19. Rf4 {[%clk 0:01:19.7]} 19... h4
{[%clk 0:01:34.9]} 20. Qe3 {[%clk 0:01:10.2]} 20... f6 {[%clk 0:01:15.2]} 21.
exf6 {[%clk 0:01:04]} 21... e5 {[%clk 0:01:00.9]} 22. fxg7 {[%clk 0:00:59.7]}
22... exf4 {[%clk 0:00:51.4]} 23. gxh8=Q {[%clk 0:00:59.1]} 23... fxe3 {[%clk
0:00:51.5]} 24. Qxh4 {[%clk 0:00:58.7]} 24... exf2+ {[%clk 0:00:31.7]} 25. Qxf2
{[%clk 0:00:50.9]} 25... a6 {[%clk 0:00:30.7]} 26. Nd4 {[%clk 0:00:38.4]} 26...
Rh8 {[%clk 0:00:29.7]} 27. Qg3 {[%clk 0:00:29.1]} 27... Qb6 {[%clk 0:00:28.2]}
28. b4 {[%clk 0:00:27.7]} 28... Re8 {[%clk 0:00:22.6]} 29. Re1 {[%clk
0:00:26.2]} 29... Rf8 {[%clk 0:00:20.5]} 30. h3 {[%clk 0:00:26]} 30... Qf6
{[%clk 0:00:20]} 31. Kh2 {[%clk 0:00:24.9]} 31... Rh8 {[%clk 0:00:19.4]} 32. Qe5
{[%clk 0:00:22.6]} 32... Qf8 {[%clk 0:00:15.4]} 33. Rf1 {[%clk 0:00:19.2]} 33...
Qg8 {[%clk 0:00:13.9]} 34. Rf3 {[%clk 0:00:18]} 34... Rh6 {[%clk 0:00:12.3]} 35.
Qe7 {[%clk 0:00:15]} 35... Rg6 {[%clk 0:00:07.3]} 36. Rf8+ {[%clk 0:00:14.1]}
1-0